Cogmind - Beta 13 @@@ ROGUE MODE // 2024.05.29 @ 03:47:30 Player: SunnyVampire Result: Destroyed by CM-FUU(R) with Subdweller Machine Gun Performance ------------- Evolutions (0) 0 Regions Visited (3) 600 Robots Destroyed (22) 110 Value Destroyed (589) 589 Prototype IDs (0) 0 Alien Tech Used (0) 0 Bonus (0) 0 TOTAL SCORE: 1299 Bonus ------- None Cogmind --------- Core Integrity 0/250 Matter 275/300 Energy 222/250 System Corruption 0% Temperature Cool (0) Movement Treading (160) Location -10/Subcaves Parts ------- > --- POWER (1) -------- Ion Engine > --- PROPULSION (2) --- Spiked Treads Spiked Treads > --- UTILITY (2) ------ Large Storage Unit Light Armor Plating > --- WEAPON (2) ------- Beam Cannon Beam Cannon > --- INVENTORY (15) --- Aluminum Leg Aluminum Leg Aluminum Leg Heat Sink Large Storage Unit Experimental Sensor Array Terrain Scanner Targeting Computer ECM Suite Hacking Suite Particle Gun Assault Rifle Datajack Blade Trap Peak State ------------ > --- POWER ------------ Ion Engine > --- PROPULSION ------- Spiked Treads Spiked Treads > --- UTILITY ---------- Large Storage Unit Light Armor Plating > --- WEAPON ----------- Beam Cannon Beam Cannon > --- INVENTORY -------- Ion Engine Aluminum Leg Aluminum Leg Aluminum Leg Heat Sink Large Storage Unit Experimental Sensor Array Terrain Scanner Targeting Computer ECM Suite Hacking Suite Particle Gun Assault Rifle Datajack Blade Trap [Rating: 11] Favorites ----------- Power Ion Engine Engine Ion Engine Propulsion Aluminum Leg Treads Spiked Treads Leg Aluminum Leg Wheel Compact Wheel Utility Large Storage Unit Device Heat Sink Storage Large Storage Unit Protection Light Armor Plating Weapon Beam Cannon Energy Gun Medium Laser Energy Cannon Beam Cannon Ballistic Gun Assault Rifle Launcher Grenade Launcher Special Melee Weapon Datajack Build | -11 -10 -10 -10 ------- Run | Yrd Mat Min Sub Slots Evolved . | . . . . Power . | . . . . Propulsion . | . . . . Utility . | . . . . Weapon . | . . . . Parts Attached 21 | 6 9 3 3 Power 3 | 1 1 . 1 Engine 3 | 1 1 . 1 Core . | . . . . Reactor . | . . . . Propulsion 7 | 2 3 . 2 Treads 2 | . . . 2 Leg 3 | . 3 . . Wheel 2 | 2 . . . Hover . | . . . . Flight . | . . . . Utility 5 | 1 2 2 . Device 1 | . . 1 . Storage 2 | 1 1 . . Processor . | . . . . Hackware . | . . . . Protection 2 | . 1 1 . Artifact . | . . . . Weapon 6 | 2 3 1 . Energy Gun 1 | 1 . . . Energy Cannon 2 | . 1 1 . Ballistic Gun 1 | 1 . . . Ballistic Cannon . | . . . . Launcher 1 | . 1 . . Special Weapon . | . . . . Impact Weapon . | . . . . Slashing Weapon . | . . . . Piercing Weapon . | . . . . Special Melee Weapon 1 | . 1 . . Unidentified Prototypes . | . . . . Parts Lost 7 | . 5 1 1 Power 2 | . 1 . 1 Propulsion 1 | . 1 . . Utility 1 | . . 1 . Weapon 3 | . 3 . . Highest Loss Streak 2 | . 2 1 1 To Critical Strikes . | . . . . Average Slot Usage (%) 95 | . 84 99 99 Engine 13 | . 13 14 13 Treads 3 | . . . 15 Leg 21 | . 14 28 12 Wheel 2 | . 10 . . Storage 14 | . 14 14 14 Protection 10 | . 4 12 14 Energy Gun 1 | . 6 . . Energy Cannon 17 | . . 22 28 Ballistic Gun 1 | . 6 . . Launcher 1 | . 6 . . Special Melee Weapon 4 | . 4 5 . Naked Turns . | . . . . Heaviest Build 34 | 12 32 34 34 Greatest Support 40 | 32 32 20 40 Greatest Overweight (x) 1 | . 1 1 1 Average Overweight (x) . | . . 1 . Largest Inventory Capacity 15 | 8 15 15 15 Average Capacity 13 | 7 14 15 15 Most Carried 15 | 3 15 15 15 Average Carried 11 | . 11 14 14 Final Capacity 15 | 8 15 15 15 Final Carried 15 | 3 13 15 14 Class Distribution -------------------- 100% | Mutant Dominant Class ---------------- Mutant | -10/Materials Mutant | -10/Mines Mutant | -10/Subcaves Resources | -11 -10 -10 -10 ----------- Run | Yrd Mat Min Sub Matter Collected 571 | 211 231 129 . Remotely . | . . . . Salvage Created 672 | . 535 98 39 Parts 40 | . 32 4 4 Haulers Intercepted 2 | . 2 . . Recyclers Shooed . | . . . . Parts Field Recycled . | . . . . Retrieved Matter . | . . . . Parts Self-Destructed 5 | . . . 5 Prevented . | . . . . Kills | -11 -10 -10 -10 ------- Run | Yrd Mat Min Sub Combat Hostiles Destroyed 13 | . 10 2 1 Guns 6 | . 6 . . Cannons 5 | . 2 2 1 AOE 2 | . 2 . . Classes Destroyed 8 | . 7 . 1 Worker 2 | . 2 . . Builder 1 | . 1 . . Hauler 2 | . 2 . . Mechanic 1 | . 1 . . Operator 1 | . 1 . . Watcher 2 | . 2 . . Grunt 12 | . 10 2 . Subdweller 1 | . . . 1 Best Kill Streak 7 | . 7 1 1 Combat Bots Only 2 | . 2 1 1 Max Kills in Single Turn 4 | . 4 1 1 Gunslinging . | . . . . Exploded 1 | . 1 . . Melee . | . . . . Uniques/NPCs Destroyed . | . . . . Combat | -11 -10 -10 -10 -------- Run | Yrd Mat Min Sub Hostile Shots Fired 103 | . 75 20 8 Missed 26 | . 19 4 3 Damage Taken 1080 | . 725 212 143 Core 265 | . 158 38 69 Absorbed by Shields . | . . . . Core Remaining (%) 100 | 100 . . . Volleys Fired 61 | . 49 9 3 Largest 2 | . 2 2 2 Hottest 120 | . 70 120 120 Shots Fired 105 | . 81 18 6 Gun 63 | . 63 . . Cannon 29 | . 5 18 6 Launcher 13 | . 13 . . Special . | . . . . Kinetic 32 | . 32 . . Thermal 60 | . 36 18 6 Explosive 13 | . 13 . . Electromagnetic . | . . . . Robot Hit Streak 14 | . 14 2 4 Robot Miss Streak 4 | . 4 3 1 Penetration Max . | . . . . Secondary Targets 2 | . 2 . . Max Gunslinging Chain 1 | . 1 . . Shots Hit Robots 69 | . 52 13 4 Core Hits 40 | . 34 4 2 Critical Kills . | . . . . Critical Parts Destroyed . | . . . . Critical Strikes 2 | . 2 . . Burn 2 | . 2 . . Melee Attacks 6 | . 2 4 . Impact . | . . . . Slashing . | . . . . Piercing . | . . . . Sneak Attacks 4 | . . 4 . Combat Hostiles . | . . . . Follow-up Attacks . | . . . . Damage Inflicted 1284 | . 1033 164 87 Guns 604 | . 604 . . Cannons 302 | . 52 163 87 Explosions 377 | . 377 . . Melee . | . . . . Ramming 1 | . . 1 . Kinetic 253 | . 253 . . Thermal 653 | . 403 163 87 Explosive 377 | . 377 . . Electromagnetic . | . . . . Impact . | . . . . Slashing . | . . . . Piercing . | . . . . Highest Corruption . | . . . . Average Corruption . | . . . . Corruption Purged . | . . . . Corruption Blocked . | . . . . Overload Shots . | . . . . Overflow Damage 10 | . 10 . . Projectiles . | . . . . Explosions 10 | . 10 . . Melee . | . . . . Knockbacks . | . . . . Impact . | . . . . Kinetic . | . . . . Secondary . | . . . . Self-Inflicted Damage 58 | . 58 . . Shots 2 | . 2 . . Rammed . | . . . . Targets Rammed 2 | . . 2 . Kicked 2 | . . 2 . Crushed . | . . . . Highest Temperature 405 | . 168 405 33 Average Temperature 97 | . 51 206 17 Received Heat Transfer 531 | . 390 117 24 Effects 1 | . . 1 . Energy Bleed 1 | . . 1 . Siege Activations . | . . . . Robots Corrupted . | . . . . Combat Hostiles . | . . . . Parts Fried . | . . . . Impact Corruptions . | . . . . Robots Melted . | . . . . Combat Hostiles . | . . . . Parts Melted 4 | . 3 1 . Heat Transferred 1813 | . 1295 333 185 Parts Sabotaged . | . . . . Parts Stolen . | . . . . Parts Stripped . | . . . . Power Chain Reactions . | . . . . Alert | -11 -10 -10 -10 ------- Run | Yrd Mat Min Sub Peak Influence 198 | . 198 45 . Initial 32 | . . 32 . Average 41 | . 112 17 . Maximum Alert Level . | . . . . Low Security (%) 100 | 100 100 100 . Level 1 . | . . . . Level 2 . | . . . . Level 3 . | . . . . Level 4 . | . . . . Level 5 . | . . . . High Security . | . . . . Max Security . | . . . . Squads Dispatched 4 | . 3 1 . Investigation 3 | . 2 1 . Extermination . | . . . . Reinforcement 1 | . 1 . . Assault . | . . . . Garrison . | . . . . Intercept . | . . . . Searches Triggered . | . . . . Construction Impeded . | . . . . Haulers Reinforced . | . . . . Active Scanning Responses . | . . . . Cargo Convoy Interrupts . | . . . . Stealth | -11 -10 -10 -10 --------- Run | Yrd Mat Min Sub Distress Signals . | . . . . Communications Jammed . | . . . . Distress Signals . | . . . . Times Spotted 22 | . 17 2 3 Peak Tracking Total 3 | . 3 2 1 Tactical Retreats . | . . . . Traps | -11 -10 -10 -10 ------- Run | Yrd Mat Min Sub Traps Triggered 1 | . . . 1 Indirectly . | . . . . Trap Hack Attempts . | . . . . Triggered . | . . . . Disarmed 12 | . 12 . . Reprogrammed . | . . . . Reused . | . . . . Traps Extracted . | . . . . Installed . | . . . . Triggered . | . . . . Most Traps Carried 1 | . . 1 1 Machines | -11 -10 -10 -10 ---------- Run | Yrd Mat Min Sub Machines Disabled 3 | . 3 . . Max in Single Turn 1 | . 1 . . Machines Repaired . | . . . . Machines Dismantled . | . . . . Machines Sabotaged . | . . . . Overloaded Fab Kills . | . . . . Hacking | -11 -10 -10 -10 --------- Run | Yrd Mat Min Sub Machines Accessed 6 | . 5 1 . Terminals 5 | . 4 1 . Fabricators . | . . . . Repair Stations . | . . . . Recycling Units 1 | . 1 . . Scanalyzers . | . . . . Garrison Access . | . . . . Total Hacks 28 | . 25 3 . Successful 16 | . 15 1 . Failed 12 | . 10 2 . Catastrophic 1 | . 1 . . Database Lockouts . | . . . . Manual 12 | . 10 2 . Terminals 25 | . 22 3 . Fabricators . | . . . . Repair Stations . | . . . . Recycling Units 3 | . 3 . . Scanalyzers . | . . . . Garrison Access . | . . . . Terminal Hacks 14 | . 13 1 . Robot Analysis 1 | . 1 . . Branch Access Points 1 | . 1 . . Locate Traps 1 | . 1 . . Disarm Traps 3 | . 3 . . Dispatch Records 1 | . 1 . . Security Status 1 | . 1 . . Patrol Status 1 | . 1 . . Recall Investigation 1 | . 1 . . Hauler Manifests 2 | . 2 . . Zone Layout 2 | . 1 1 . Fabricator Hacks . | . . . . Repair Station Hacks . | . . . . Recycling Unit Hacks 2 | . 2 . . Report Inventory 1 | . 1 . . Retrieve Components 1 | . 1 . . Scanalyzer . | . . . . Garrison Access Hacks . | . . . . Unauthorized Hacks . | . . . . Terminals . | . . . . Fabricators . | . . . . Repair Stations . | . . . . Recycling Units . | . . . . Scanalyzers . | . . . . Garrison Access . | . . . . Data Cores Recovered . | . . . . Used . | . . . . Hacking Detections 5 | . 4 1 . Full Trace Events 4 | . 3 1 . Feedback Events . | . . . . Feedback Blocked . | . . . . Robot Schematics Acquired . | . . . . Robots Built . | . . . . Authchips . | . . . . Time . | . . . . Total Robot Build Rating . | . . . . Part Schematics Acquired . | . . . . Parts Built . | . . . . Authchips . | . . . . Time . | . . . . Total Part Build Rating . | . . . . Parts Repaired . | . . . . Time . | . . . . Parts Recycled . | . . . . Recycled Matter . | . . . . Retrieved Matter . | . . . . Retrieved Components 4 | . 4 . . Parts Scanalyzed . | . . . . Part Schematics Acquired . | . . . . Parts Damaged . | . . . . Bothacking | -11 -10 -10 -10 ------------ Run | Yrd Mat Min Sub Used RIF Installer . | . . . . Robots Hacked 2 | . 1 1 . Non-combat 1 | . . 1 . Combat 1 | . 1 . . Robot Hacks Applied 2 | . 1 1 . parse_system 2 | . 1 1 . Relay Couplers Released . | . . . . Fabnet Peak Effective % . | . . . . Robots Rewired . | . . . . Allies Hacked . | . . . . Hacks Repelled . | . . . . Allies | -11 -10 -10 -10 -------- Run | Yrd Mat Min Sub Total Allies . | . . . . Largest Group . | . . . . Highest-Rated Group . | . . . . Highest-Rated Ally . | . . . . Total Orders . | . . . . Ally Attacks . | . . . . Total Damage . | . . . . Kills . | . . . . Allies Corrupted . | . . . . Allies Melted . | . . . . Intel | -11 -10 -10 -10 ------- Run | Yrd Mat Min Sub Robot Analysis Total 1 | . 1 . . Derelict Logs Recovered 2 | . . 2 . Drone Launches . | . . . . Drone Recoveries . | . . . . Exploration | -11 -10 -10 -10 ------------- Run | Yrd Mat Min Sub Turns Passed 3630 | 528 865 1640 597 Spaces Moved 1645 | 107 445 755 338 Core 7 | 7 . . . Treads 206 | . . . 206 Legs 1072 | . 185 755 132 Wheels 360 | 100 260 . . Hover . | . . . . Flight . | . . . . Fastest Speed 50 | 50 100 190 160 Average Speed 167 | 96 141 190 171 Slowest Speed 190 | 100 190 190 190 Overloaded Moves . | . . . . Propulsion Burnouts . | . . . . Robots Hopped . | . . . . Cave-ins Triggered . | . . . . Exploration Rate (%) 47 | 7 54 96 33 Regions Visited 3 Branch Regions 2 Pre-discovered Areas 2 | . . 2 . Known Exits Taken 1 | . 1 . . Unknown Exits Taken 2 | 1 . 1 . Scrap Searched 5 | . . 3 2 Spaces Dug . | . . . . Terrain Destroyed 61 | . 61 . . Melee . | . . . . Projectile . | . . . . AOE 61 | . 61 . . Terrain Rammed . | . . . . Walls Destroyed . | . . . . Machines Disabled . | . . . . Actions | -11 -10 -10 -10 --------- Run | Yrd Mat Min Sub Total 2417 | 528 601 940 348 Wait 638 | 413 69 156 . Move 1642 | 106 444 754 338 Hop . | . . . . Pick Up 33 | 3 21 7 2 Fast Attach 8 | 6 1 1 . Attach 8 | . 7 . 1 Detach 1 | . 1 . . Swap 5 | . 1 2 2 Drop 13 | . 6 5 2 Fire 61 | . 49 9 3 Melee 6 | . 2 4 . Ram . | . . . . Kick 2 | . . 2 . Crush . | . . . . Escape Stasis . | . . . . Rewire . | . . . . Trap . | . . . . Miscellaneous . | . . . . Route ------- -11/Scrapyard -10/Materials (discovered 3 exits: [*Mat] / *Min x2) -10/Mines (discovered 3 exits: [*Mat x2] / [*Sub]) -10/Subcaves (discovered 1 exit: [*Mat]) History --------- Turn | Location | Event 21 | -11/Scrapyard | Discovered new exit (range 16) 529 | -11/Scrapyard | Entered Materials 530 | -10/Materials | Build established: Mutant 872 | -10/Materials | Discovered new exit (range 8) 1230 | -10/Materials | Discovered new exit (range 6) 1270 | -10/Materials | Identified exit to Mines 1335 | -10/Materials | Core integrity fell below 50% 1394 | -10/Materials | Entered Mines 1447 | -10/Mines | Met a Derelict bent on vengeance 1774 | -10/Mines | Learned location of Zion (-7) 1978 | -10/Mines | Discovered new exit (range 8) 2218 | -10/Mines | Discovered new exit (range 8) 2370 | -10/Mines | Discovered new exit (range 5) 2845 | -10/Mines | Found a damaged Exp. Sensor Array with a note attached 2853 | -10/Mines | Found Prototype Device 2918 | -10/Mines | Found a hidden stash of uninstalled traps 3034 | -10/Mines | Entered Subcaves 3124 | -10/Subcaves | Discovered new exit (range 10) 3216 | -10/Subcaves | Core integrity fell below 20% 3391 | -10/Subcaves | Shifting Twisted Machinery released Sub. Monowheel 3631 | -10/Subcaves | Destroyed by CM-FUU(R) with Subdweller Machine Gun Last Messages --------------- 03078_ Searching scrap... 03078_ Found Mak. Laser. 03078_ Found 18 Matter. 03124_ EXIT=FOUND 03263_ NV-CJP(R) destroyed. 03277_ Subatomizers dissect the Sub. Power Source. 03287_ Searching scrap... 03287_ Found Spk. Treads. 03287_ Found 39 Matter. 03289_ Dropped Wheel. 03291_ Acquired Spk. Treads. 03304_ Subatomizers dissect the Sub. Power Source. Sub. Monowheel falls loose from the Twisted Machinery. 03609_ Triggered Piercing Trap. 03609_ Spikes shoot up from the floor. 03609_ Critical hit (Impale). 03609_ Ion Engine destroyed. Map ----- +----------------------------------------------------+ | ###?# #???????????????????????????? | | #### ##???## #???????????????????????????? | | ???## #????? #???????????????????????????? | | ????# #?????# ## ##??????????????????????????? | | ????## #????## #??????????????????????????? | | ?????### #????# #??????????????????????????? | | ??????## ##???## #??????????????????????????? | | ??????# ##### #??????????????????????????? | | ??????## # # ## #????????##????????????????? | | ???????## # ##?????### #####????????????? | | ????????#### # ## #????## ###??????????? | | ???????????######## #???## ^ # ????????? | | ????????????????## ##### ???????? | | ?????# ???????# # ## ^ ????????? | | ??????# ##### #???????????????? | | ???????# #???????????????? | | ??????????# #### ##???????????????? | | ??????????## ##??## ###????????????????? | | ???????????# ## #???## ##??????????????????? | | ??????????# ?# ##???# #???????????????????? | | ?????????# ??#####????# ##??????????????????? | | ???????? ???????????### #??????????????????? | | ?????? ###?????????##??# #??????????????????? | | ????? #??????????#### ### #??????????????????? | | ????? ???????????## # #??????????????????? | | ????? ????????????# @ ##??????????????????? | | ??????????????????# ## #???????????????????? | | ?????????????? R ??#####???????????????????? | | ?????????????# R ???????????????????????????? | | ?????????????## #????????????????????????????? | | ??????????????#####??????????????????????????????? | | ?????????????????????????????????????????????????? | | ?????????????????????????????????????????????????? | | ?????????????????????????????????????????????????? | | ?????????????????????????????????????????????????? | | ?????????????????????????????????????????????????? | | ?????????????????????????????????????????????????? | | ?????????????????????????????????????????????????? | | ?????????????????????????????????????????????????? | | ?????????????????????????????????????????????????? | | ?????????????????????????????????????????????????? | | ?????????????????????????????????????????????????? | | ?????????????????????????????????????????????????? | | ?????????????????????????????????????????????????? | | ?????????????????????????????????????????????????? | | | | | | | | | | | +----------------------------------------------------+ Best States ------------- Heat Dissipation 35 Energy Generation 10 Energy Capacity 250 Matter Stores 300 Matter Capacity 300 Sight Range 16 Terrain Scan Density 10 Armor Coverage 150 Evasion (%) 40 Recoil Reduction 2 Item Schematics ----------------- None Robot Schematics ------------------ None Fabricated ------------ Nothing Alien Tech Used ----------------- None Achievements -------------- None Challenges ------------ None Game ------ Seed ShadeWeaponUnit Manual? 0 Play Time 00:41:09 Cumulative 4.2 hours Start 2024.05.29 @ 03:00:01 End 2024.05.29 @ 03:47:30 Sessions 1 Manual Loads 0 Difficulty Rogue Special Mode None Game No. 7 Rogue 7 Adventurer 0 Explorer 0 Win Type - Total 0 Types 0/0/0/0/0/0/0/0/0 Lore% 2 Gallery% 5 Achievement% 7 Wizard Run 0 Options --------- Layout 1 ASCII 0 Keyboard 0 Movement Numpad Keybinds 0 Fullscreen 1 Font 24/Smallcaps Map View 50x35 Zoom Use 0% Tactical HUD 1 Map Filters NONE Filters NONE Steam 1 RUN: 87384ce8-0d82-4fdf-8051-9d89e0bde7da